Workbook

Sheet Pasiūlymas
A2: PIRKIMO SĄLYGŲ PRIEDAS "PASIŪLYMŲ FORMA"
A4: VIENKARTINĖS/PAGALBINĖS MED. PRIEMONĖS NE PER CPO
A6: Kam: | B6: VšĮ LSMU Kauno ligoninė
A8: Data: | B8: 2022 04 27
A9: Nr.: | B9: 2022-016
A10: Vieta: | B10: Vilnius
A12: Tiekėjo pavadinimas / Ūkio subjektų grupės nariai: | C12: UAB "B.Braun Medical"
A13: Tiekėjo kodas (-ai): | C13: 111551739
A14: Tiekėjo adresas (-ai): | C14: Viršuliškių skg. 34-1, LT-05132 Vilnius
A15: Tiekėjo PVM mokėtojo kodas(-ai): | C15: LT115517314
A16: Tiekėjo / Ūkio subjektų grupės atsakingo partnerio sąskaitos numeris, banko pavadinimas ir banko kodas (-ai): | C16: A/s LT617044060001097040, AB “SEB bankas”, kodas 70440
A17: Asmens atsakingo už pasiūlymą vardas, pavardė: | C17: Pardavimų vadybininkas Vincas Vaitiekūnas
A18: Asmens atsakingo už pasiūlymą telefono numeris, el. pašto adresas: | C18: 8 5 237 43 33, vincas.vaitiekunas@bbraun.com ; office.lt@bbraun.com
A19: Tiekėjo / Ūkio subjektų grupės, laimėjimo atveju, pasirašančio sutartį asmens vardas, pavardė, pareigos: | C19: Direktorius Kęstutis Liauba
A20: Tiekėjo / Ūkio subjektų grupės, laimėjimo atveju, už sutarties vykdymą atsakingo asmens vardas, pavardė, telefono numeris, elektroninio pašto adresas: | C20: Tiekimo vadybininkė Odeta Muralytė, 8 5 237 43 33, odeta.muralyte@bbraun.com; office.lt@bbraun.com
A21: (1) Tiekėjo / Ūkio subjektų grupės narių, (2) ūkio subjektų, kurių pajėgumais remiamasi, ir (3) jei pašalinimo pagrindai taikomi visiems subtiekėjams - subtiekėjų, kolegialaus priežiūros organo (Stebėtojų tarybos) ir (ar) kolegialaus valdymo organo (Valdybos) narių sąrašas (jei sudaryta) ir (ar) asmuo, kuriam suteikti VPĮ 46 str. 2 d. 2 p. numatyti įgaliojimai | C21: 1. Juha Seppo Huhtala 2. Voitto Olavi Pajulehto 3. Mia Ulrika Eklund | G21: =IF((SUMPRODUCT(--(C21=""))>0), "Privaloma užpildyti, kai taikomi pašalinimo pagrindai", "") -> 
A23: Tiekėjo patvirtinimai:
A24: 1. Šiuo pasiūlymu pažymime, kad sutinkame su visomi pirkimo sąlygomis, nustatytomis:
A25: 1.1. viešojo pirkimo dokumentuose
A26: 1.2. kituose pirkimo dokumentuose (jų paaiškinimuose, papildymuose).
A27: 2. Patvirtiname, kad informacija ir duomenys, pateikti pasiūlyme, yra teisingi ir apima viską, ko reikia tinkamam sutarties įvykdymui
A28: 3. Patvirtiname, kad jei pasiūlyme nenurodyti kolegialaus priežiūros/valdymo organų nariai, šie organai juridiniuose asmenyse nėra sudaryti (taikoma, kai pirkimo dokumentuose nustatyti pašalinimo pagrindai).
A29: 4. Pasiūlymas galioja iki termino, nustatyto pirkimo dokumentuose.
A30: 5. Tais atvejais, kai pagal galiojančius teisės aktus tiekėjui nereikia mokėti PVM, jis nurodo priežastis, dėl kurių PVM nemoka:
A31: 6. Tiekėjas kainas pateikia, nurodydamas ne daugiau skaičių po kablelio, nei leidžiama pirkimo dokumentuose.
A32: 1. DALIS | B32: AKUŠERINIS RINKINYS GIMDYVĖMS
A34: Tiekėjo pasiūlymas:
A35: Nr. | B35: Pavadinimas | C35: Kiekis | D35: Mato vienetas | E35: Kaina be PVM, Eur | F35: Suma be PVM, Eur | G35: Siūlomi produktai
A36: 1. | B36: Akušerinis rinkinys gimdyvėms
A37: 1.1. | B37: Akušerinis rinkinys gimdyvėms | C37: 800 | D37: vnt | F37: =IF(ISBLANK(E37),"", PRODUCT(C37,E37)) -> 
E38: Suma be PVM | F38: =IF(F37="","",SUM(F37:F37)) ->  | G38: =IF(F37="","Neužpildytos visos objektų kainos","") -> Neužpildytos visos objektų kainos
E39: PVM suma
E40: Suma su PVM | F40: =IF(ISBLANK(F39), "", SUM(F38:F39)) -> 
A44: 2. DALIS | B44: ATSIURBIMO KATETERIAI SU PIRŠTO KONTROLE, CH 12
A46: Tiekėjo pasiūlymas:
A47: Nr. | B47: Pavadinimas | C47: Kiekis | D47: Mato vienetas | E47: Kaina be PVM, Eur | F47: Suma be PVM, Eur | G47: Siūlomi produktai
A48: 2. | B48: Atsiurbimo kateteriai su piršto kontrole, CH 12
A49: 2.1. | B49: Atsiurbimo kateteriai su piršto kontrole, CH 12 | C49: 2700 | D49: vnt | F49: =IF(ISBLANK(E49),"", PRODUCT(C49,E49)) -> 
E50: Suma be PVM | F50: =IF(F49="","",SUM(F49:F49)) ->  | G50: =IF(F49="","Neužpildytos visos objektų kainos","") -> Neužpildytos visos objektų kainos
E51: PVM suma
E52: Suma su PVM | F52: =IF(ISBLANK(F51), "", SUM(F50:F51)) -> 
A56: 3. DALIS | B56: MEKONIJAUS SIURBTUVAI
A58: Tiekėjo pasiūlymas:
A59: Nr. | B59: Pavadinimas | C59: Kiekis | D59: Mato vienetas | E59: Kaina be PVM, Eur | F59: Suma be PVM, Eur | G59: Siūlomi produktai
A60: 3. | B60: Mekonijaus siurbtuvai
A61: 3.1. | B61: Mekonijaus atsiurbėjas skaidrus | C61: 60 | D61: vnt | F61: =IF(ISBLANK(E61),"", PRODUCT(C61,E61)) -> 
E62: Suma be PVM | F62: =IF(F61="","",SUM(F61:F61)) ->  | G62: =IF(F61="","Neužpildytos visos objektų kainos","") -> Neužpildytos visos objektų kainos
E63: PVM suma
E64: Suma su PVM | F64: =IF(ISBLANK(F63), "", SUM(F62:F63)) -> 
A68: 4. DALIS | B68: VAKUUMINĖ ŽAIZDŲ DRENAVIMO SISTEMA, 200 ML (±10ML)
A70: Tiekėjo pasiūlymas:
A71: Nr. | B71: Pavadinimas | C71: Kiekis | D71: Mato vienetas | E71: Kaina be PVM, Eur | F71: Suma be PVM, Eur | G71: Siūlomi produktai
A72: 4. | B72: Vakuuminė žaizdų drenavimo sistema, 200 ml (±10ml)
A73: 4.1. | B73: Vakuuminė žaizdų drenavimo sistema, 200 ml (±10ml) | C73: 25 | D73: vnt | F73: =IF(ISBLANK(E73),"", PRODUCT(C73,E73)) -> 
A74: 4.2. | B74: Vakuuminė žaizdų drenavimo sistema 300 ml (±100ml) | C74: 130 | D74: vnt | F74: =IF(ISBLANK(E74),"", PRODUCT(C74,E74)) -> 
E75: Suma be PVM | F75: =IF((SUMPRODUCT(--(F73:F74=""))>0), "", SUM(F73:F74)) ->  | G75: =IF((SUMPRODUCT(--(F73:F74=""))>0), "Neužpildytos visų objektų kainos", "") -> Neužpildytos visų objektų kainos
E76: PVM suma
E77: Suma su PVM | F77: =IF(ISBLANK(F76), "", SUM(F75:F76)) -> 
A81: 5. DALIS | B81: SKRANDŽIO ZONDAI NR.32
A83: Tiekėjo pasiūlymas:
A84: Nr. | B84: Pavadinimas | C84: Kiekis | D84: Mato vienetas | E84: Kaina be PVM, Eur | F84: Suma be PVM, Eur | G84: Siūlomi produktai
A85: 5. | B85: Skrandžio zondai Nr.32
A86: 5.1. | B86: Skrandžio zondai Nr.32 | C86: 1000 | D86: vnt | F86: =IF(ISBLANK(E86),"", PRODUCT(C86,E86)) -> 
E87: Suma be PVM | F87: =IF(F86="","",SUM(F86:F86)) ->  | G87: =IF(F86="","Neužpildytos visos objektų kainos","") -> Neužpildytos visos objektų kainos
E88: PVM suma
E89: Suma su PVM | F89: =IF(ISBLANK(F88), "", SUM(F87:F88)) -> 
A93: 6. DALIS | B93: KATETERIAI FOLEY CH 14
A95: Tiekėjo pasiūlymas:
A96: Nr. | B96: Pavadinimas | C96: Kiekis | D96: Mato vienetas | E96: Kaina be PVM, Eur | F96: Suma be PVM, Eur | G96: Siūlomi produktai
A97: 6. | B97: Kateteriai Foley CH 14
A98: 6.1. | B98: Kateteriai Foley, CH 14 | C98: 970 | D98: vnt | F98: =IF(ISBLANK(E98),"", PRODUCT(C98,E98)) -> 
E99: Suma be PVM | F99: =IF(F98="","",SUM(F98:F98)) ->  | G99: =IF(F98="","Neužpildytos visos objektų kainos","") -> Neužpildytos visos objektų kainos
E100: PVM suma
E101: Suma su PVM | F101: =IF(ISBLANK(F100), "", SUM(F99:F100)) -> 
A105: 7. DALIS | B105: ADATOS SPINALINĖS,JŲ PRAVEDĖJAI PENCIL POINT TIPO SU INTRODIUSERIU
A107: Tiekėjo pasiūlymas:
A108: Nr. | B108: Pavadinimas | C108: Kiekis | D108: Mato vienetas | E108: Kaina be PVM, Eur | F108: Suma be PVM, Eur | G108: Siūlomi produktai
A109: 7. | B109: Adatos spinalinės,jų pravedėjai Pencil point tipo su introdiuseriu
A110: 7.1. | B110: Adatos spinalinės,jų pravedėjai Pencil point tipo su introdiuseriu, 27G/88mm | C110: 250 | D110: vnt | E110: 3.7 | F110: =IF(ISBLANK(E110),"", PRODUCT(C110,E110)) -> 925 | G110: Pencan k. 4502051-13
E111: Suma be PVM | F111: =IF(F110="","",SUM(F110:F110)) -> 925 | G111: =IF(F110="","Neužpildytos visos objektų kainos","") -> 
E112: PVM suma | F112: =(F111*1.05)-F111 -> 46.25
E113: Suma su PVM | F113: =IF(ISBLANK(F112), "", SUM(F111:F112)) -> 971.25
A117: 8. DALIS | B117: KOMBINUOTAS KVĖPAVIMO FILTRAS SU DRĖGMĖS GRĄŽINIMU
A119: Tiekėjo pasiūlymas:
A120: Nr. | B120: Pavadinimas | C120: Kiekis | D120: Mato vienetas | E120: Kaina be PVM, Eur | F120: Suma be PVM, Eur | G120: Siūlomi produktai
A121: 8. | B121: Kombinuotas kvėpavimo filtras su drėgmės grąžinimu
A122: 8.1. | B122: Kombinuotas kvėpavimo filtras su drėgmės grąžinimu | C122: 2600 | D122: vnt | F122: =IF(ISBLANK(E122),"", PRODUCT(C122,E122)) -> 
E123: Suma be PVM | F123: =IF(F122="","",SUM(F122:F122)) ->  | G123: =IF(F122="","Neužpildytos visos objektų kainos","") -> Neužpildytos visos objektų kainos
E124: PVM suma
E125: Suma su PVM | F125: =IF(ISBLANK(F124), "", SUM(F123:F124)) -> 
A129: 9. DALIS | B129: ADATOS INJEKCINĖS
A131: Tiekėjo pasiūlymas:
A132: Nr. | B132: Pavadinimas | C132: Kiekis | D132: Mato vienetas | E132: Kaina be PVM, Eur | F132: Suma be PVM, Eur | G132: Siūlomi produktai
A133: 9. | B133: Adatos injekcinės
A134: 9.1. | B134: Adatos injekcinės, dydis 1,1x40mm (±2mm) | C134: 1300 | D134: vnt | F134: =IF(ISBLANK(E134),"", PRODUCT(C134,E134)) -> 
E135: Suma be PVM | F135: =IF(F134="","",SUM(F134:F134)) ->  | G135: =IF(F134="","Neužpildytos visos objektų kainos","") -> Neužpildytos visos objektų kainos
E136: PVM suma
E137: Suma su PVM | F137: =IF(ISBLANK(F136), "", SUM(F135:F136)) -> 
A141: 10. DALIS | B141: ADATOS SPINALINĖS,JŲ PRAVEDĖJAI QUINCKE TIPO
A143: Tiekėjo pasiūlymas:
A144: Nr. | B144: Pavadinimas | C144: Kiekis | D144: Mato vienetas | E144: Kaina be PVM, Eur | F144: Suma be PVM, Eur | G144: Siūlomi produktai
A145: 10. | B145: Adatos spinalinės,jų pravedėjai Quincke tipo
A146: 10.1. | B146: Adatos spinalinės,jų pravedėjai Quincke tipo 25G/88mm (±2mm) | C146: 180 | D146: vnt | E146: 1.3 | F146: =IF(ISBLANK(E146),"", PRODUCT(C146,E146)) -> 234 | G146: Spinocan, intordiuseris k. 4505905-01 ir 4505000-13
A147: 10.2. | B147: Adatos spinalinės,jų pravedėjai Quincke tipo 27G/120mm (±2mm) | C147: 60 | D147: vnt | E147: 1.3 | F147: =IF(ISBLANK(E147),"", PRODUCT(C147,E147)) -> 78 | G147: Spinocan, intordiuseris k. 4502140-13 ir 4500059-13
A148: 10.3. | B148: Adatos spinalinės,jų pravedėjai Quincke tipo 27G/88mm (±2mm) | C148: 1000 | D148: vnt | E148: 1.3 | F148: =IF(ISBLANK(E148),"", PRODUCT(C148,E148)) -> 1300 | G148: Spinocan, intordiuseris k. 4503902-01 ir 4500059-13
E149: Suma be PVM | F149: =IF((SUMPRODUCT(--(F146:F148=""))>0), "", SUM(F146:F148)) -> 1612 | G149: =IF((SUMPRODUCT(--(F146:F148=""))>0), "Neužpildytos visų objektų kainos", "") -> 
E150: PVM suma | F150: =(F149*1.05)-F149 -> 80.6
E151: Suma su PVM | F151: =IF(ISBLANK(F150), "", SUM(F149:F150)) -> 1692.6
A155: 11. DALIS | B155: ADATOS SPINALINĖS,JŲ PRAVEDĖJAI STERICAN TIPO
A157: Tiekėjo pasiūlymas:
A158: Nr. | B158: Pavadinimas | C158: Kiekis | D158: Mato vienetas | E158: Kaina be PVM, Eur | F158: Suma be PVM, Eur | G158: Siūlomi produktai
A159: 11. | B159: Adatos spinalinės,jų pravedėjai Sterican tipo
A160: 11.1. | B160: Adatos spinalinės,jų pravedėjai Sterican tipo 14G 2,1x80mm (±2mm) | C160: 650 | D160: vnt | E160: 0.35 | F160: =IF(ISBLANK(E160),"", PRODUCT(C160,E160)) -> 227.5 | G160: Sterican k.4665473
A161: 11.2. | B161: Adatos spinalinės,jų pravedėjai Sterican tipo 21G 0,80x120mm (±2mm) | C161: 970 | D161: vnt | E161: 0.15 | F161: =IF(ISBLANK(E161),"", PRODUCT(C161,E161)) -> 145.5 | G161: Sterican k. 4665643
E162: Suma be PVM | F162: =IF((SUMPRODUCT(--(F160:F161=""))>0), "", SUM(F160:F161)) -> 373 | G162: =IF((SUMPRODUCT(--(F160:F161=""))>0), "Neužpildytos visų objektų kainos", "") -> 
E163: PVM suma | F163: =(F162*1.05)-F162 -> 18.65
E164: Suma su PVM | F164: =IF(ISBLANK(F163), "", SUM(F162:F163)) -> 391.65
A168: 12. DALIS | B168: CENTRINĖS VENOS KATETERIZAVIMO RINKINIAI
A170: Tiekėjo pasiūlymas:
A171: Nr. | B171: Pavadinimas | C171: Kiekis | D171: Mato vienetas | E171: Kaina be PVM, Eur | F171: Suma be PVM, Eur | G171: Siūlomi produktai
A172: 12. | B172: Centrinės venos kateterizavimo rinkiniai
A173: 12.1. | B173: Centrinės venos kateterizavimo rinkiniai dvikanaliai | C173: 130 | D173: vnt | E173: 16.9 | F173: =IF(ISBLANK(E173),"", PRODUCT(C173,E173)) -> 2197 | G173: Certofix duo k. 4161211-07
E174: Suma be PVM | F174: =IF(F173="","",SUM(F173:F173)) -> 2197 | G174: =IF(F173="","Neužpildytos visos objektų kainos","") -> 
E175: PVM suma | F175: =(F174*1.05)-F174 -> 109.85
E176: Suma su PVM | F176: =IF(ISBLANK(F175), "", SUM(F174:F175)) -> 2306.85
A180: 13. DALIS | B180: RINKINYS EPICISTOSTOMAI
A182: Tiekėjo pasiūlymas:
A183: Nr. | B183: Pavadinimas | C183: Kiekis | D183: Mato vienetas | E183: Kaina be PVM, Eur | F183: Suma be PVM, Eur | G183: Siūlomi produktai
A184: 13. | B184: Rinkinys epicistostomai
A185: 13.1. | B185: Rinkinys epicistostomai | C185: 4 | D185: vnt | F185: =IF(ISBLANK(E185),"", PRODUCT(C185,E185)) -> 
E186: Suma be PVM | F186: =IF(F185="","",SUM(F185:F185)) ->  | G186: =IF(F185="","Neužpildytos visos objektų kainos","") -> Neužpildytos visos objektų kainos
E187: PVM suma
E188: Suma su PVM | F188: =IF(ISBLANK(F187), "", SUM(F186:F187)) -> 
A192: 14. DALIS | B192: ELEKTRODAI VIRŠODINIAI
A194: Tiekėjo pasiūlymas:
A195: Nr. | B195: Pavadinimas | C195: Kiekis | D195: Mato vienetas | E195: Kaina be PVM, Eur | F195: Suma be PVM, Eur | G195: Siūlomi produktai
A196: 14. | B196: Elektrodai viršodiniai
A197: 14.1. | B197: Elektrodai viršodiniai | C197: 650 | D197: vnt | F197: =IF(ISBLANK(E197),"", PRODUCT(C197,E197)) -> 
E198: Suma be PVM | F198: =IF(F197="","",SUM(F197:F197)) ->  | G198: =IF(F197="","Neužpildytos visos objektų kainos","") -> Neužpildytos visos objektų kainos
E199: PVM suma
E200: Suma su PVM | F200: =IF(ISBLANK(F199), "", SUM(F198:F199)) -> 
A204: 15. DALIS | B204: HCG NĖŠTUMO NUSTATYMO TESTAS KASETĖ
A206: Tiekėjo pasiūlymas:
A207: Nr. | B207: Pavadinimas | C207: Kiekis | D207: Mato vienetas | E207: Kaina be PVM, Eur | F207: Suma be PVM, Eur | G207: Siūlomi produktai
A208: 15. | B208: HCG nėštumo nustatymo testas kasetė
A209: 15.1. | B209: HCG nėštumo nustatymo testas kasetė | C209: 100 | D209: vnt | F209: =IF(ISBLANK(E209),"", PRODUCT(C209,E209)) -> 
E210: Suma be PVM | F210: =IF(F209="","",SUM(F209:F209)) ->  | G210: =IF(F209="","Neužpildytos visos objektų kainos","") -> Neužpildytos visos objektų kainos
E211: PVM suma
E212: Suma su PVM | F212: =IF(ISBLANK(F211), "", SUM(F210:F211)) -> 
A216: 16. DALIS | B216: VAMZDELIS TRACHEOSTOMINIS ARMUOTAS SU MANŽETE
A218: Tiekėjo pasiūlymas:
A219: Nr. | B219: Pavadinimas | C219: Kiekis | D219: Mato vienetas | E219: Kaina be PVM, Eur | F219: Suma be PVM, Eur | G219: Siūlomi produktai
A220: 16. | B220: Vamzdelis tracheostominis armuotas su manžete
A221: 16.1. | B221: Vamzdelis tracheostominis armuotas su manžete | C221: 25 | D221: vnt | F221: =IF(ISBLANK(E221),"", PRODUCT(C221,E221)) -> 
A222: 16.2. | B222: Vamzdelis tracheostominis armuotas ir manžete | C222: 3 | D222: vnt | F222: =IF(ISBLANK(E222),"", PRODUCT(C222,E222)) -> 
E223: Suma be PVM | F223: =IF((SUMPRODUCT(--(F221:F222=""))>0), "", SUM(F221:F222)) ->  | G223: =IF((SUMPRODUCT(--(F221:F222=""))>0), "Neužpildytos visų objektų kainos", "") -> Neužpildytos visų objektų kainos
E224: PVM suma
E225: Suma su PVM | F225: =IF(ISBLANK(F224), "", SUM(F223:F224)) -> 
A229: 17. DALIS | B229: NOSIES KANIULĖS
A231: Tiekėjo pasiūlymas:
A232: Nr. | B232: Pavadinimas | C232: Kiekis | D232: Mato vienetas | E232: Kaina be PVM, Eur | F232: Suma be PVM, Eur | G232: Siūlomi produktai
A233: 17. | B233: Nosies kaniulės
A234: 17.1. | B234: Nosies kaniulės | C234: 35 | D234: vnt | F234: =IF(ISBLANK(E234),"", PRODUCT(C234,E234)) -> 
E235: Suma be PVM | F235: =IF(F234="","",SUM(F234:F234)) ->  | G235: =IF(F234="","Neužpildytos visos objektų kainos","") -> Neužpildytos visos objektų kainos
E236: PVM suma
E237: Suma su PVM | F237: =IF(ISBLANK(F236), "", SUM(F235:F236)) -> 
A241: 18. DALIS | B241: TARPINĖ ANTIASTMATINIAMS VAISTAMS INHALIUOTI (LYGIAVERTĖ OPTICHAMBER DIAMOND)
A243: Tiekėjo pasiūlymas:
A244: Nr. | B244: Pavadinimas | C244: Kiekis | D244: Mato vienetas | E244: Kaina be PVM, Eur | F244: Suma be PVM, Eur | G244: Siūlomi produktai
A245: 18. | B245: Tarpinė antiastmatiniams vaistams inhaliuoti (lygiavertė OptiChamber Diamond)
A246: 18.1. | B246: Tarpinė antiastmatiniams vaistams inhaliuoti (lygiavertė OptiChamber Diamond) | C246: 4 | D246: vnt | F246: =IF(ISBLANK(E246),"", PRODUCT(C246,E246)) -> 
E247: Suma be PVM | F247: =IF(F246="","",SUM(F246:F246)) ->  | G247: =IF(F246="","Neužpildytos visos objektų kainos","") -> Neužpildytos visos objektų kainos
E248: PVM suma
E249: Suma su PVM | F249: =IF(ISBLANK(F248), "", SUM(F247:F248)) -> 
A253: 19. DALIS | B253: SKARIFIKATORIAI STERILŪS
A255: Tiekėjo pasiūlymas:
A256: Nr. | B256: Pavadinimas | C256: Kiekis | D256: Mato vienetas | E256: Kaina be PVM, Eur | F256: Suma be PVM, Eur | G256: Siūlomi produktai
A257: 19. | B257: Skarifikatoriai sterilūs
A258: 19.1. | B258: Skarifikatoriai sterilūs | C258: 2200 | D258: vnt | F258: =IF(ISBLANK(E258),"", PRODUCT(C258,E258)) -> 
E259: Suma be PVM | F259: =IF(F258="","",SUM(F258:F258)) ->  | G259: =IF(F258="","Neužpildytos visos objektų kainos","") -> Neužpildytos visos objektų kainos
E260: PVM suma
E261: Suma su PVM | F261: =IF(ISBLANK(F260), "", SUM(F259:F260)) -> 
A265: 20. DALIS | B265: PEILIUKAS OFTALMOLOGINIS PLYŠINIS 2,4MM
A267: Tiekėjo pasiūlymas:
A268: Nr. | B268: Pavadinimas | C268: Kiekis | D268: Mato vienetas | E268: Kaina be PVM, Eur | F268: Suma be PVM, Eur | G268: Siūlomi produktai
A269: 20. | B269: Peiliukas oftalmologinis plyšinis 2,4mm
A270: 20.1. | B270: Peiliukas oftalmologinis plyšinis 2,4mm | C270: 90 | D270: vnt | F270: =IF(ISBLANK(E270),"", PRODUCT(C270,E270)) -> 
E271: Suma be PVM | F271: =IF(F270="","",SUM(F270:F270)) ->  | G271: =IF(F270="","Neužpildytos visos objektų kainos","") -> Neužpildytos visos objektų kainos
E272: PVM suma
E273: Suma su PVM | F273: =IF(ISBLANK(F272), "", SUM(F271:F272)) -> 
A277: 21. DALIS | B277: PTVAA PAGALBINIŲ PRIETAISŲ RINKINIAI
A279: Tiekėjo pasiūlymas:
A280: Nr. | B280: Pavadinimas | C280: Kiekis | D280: Mato vienetas | E280: Kaina be PVM, Eur | F280: Suma be PVM, Eur | G280: Siūlomi produktai
A281: 21. | B281: PTVAA pagalbinių prietaisų rinkiniai
A282: 21.1. | B282: PTVAA pagalbinių prietaisų rinkiniai | C282: 25 | D282: vnt | F282: =IF(ISBLANK(E282),"", PRODUCT(C282,E282)) -> 
E283: Suma be PVM | F283: =IF(F282="","",SUM(F282:F282)) ->  | G283: =IF(F282="","Neužpildytos visos objektų kainos","") -> Neužpildytos visos objektų kainos
E284: PVM suma
E285: Suma su PVM | F285: =IF(ISBLANK(F284), "", SUM(F283:F284)) -> 
A289: 22. DALIS | B289: NOSIES TAMPONAI
A291: Tiekėjo pasiūlymas:
... 1068 more rows

Sheet Subtiekėjai ir priedai
A2: Ūkio subjektai (įskaitant kvazisubtiekėjus - fiziniai asmenys, kuriuos ketinama įdarbinti pirkimo laimėjimo atveju), kurių pajėgumais tiekėjas remiasi, kad atitiktų keliamus kvalifikacijos reikalavimus:
A5: Pavadinimas* | C5: Kodas, adresas | F5: Perduodami įsipareigojimai | I5: Perduodamų įsipareigojimų dalis nuo visos pirkimo sutarties (Eur arba %) | K5: Kval. Reikalavimo Nr.
A17: Subtiekėjams / subteikėjams / subrangovams numatomos perduoti veiklos (privaloma nurodyti) ir šių ūkio subjektų pavadinimai (jei žinomi):
A19: Pavadinimas | C19: Kodas, adresas | F19: Perduodama veikla* | I19: Perduodamos veiklos dalis nuo visos pirkimo sutarties (Eur arba %)
A33: Kartu su pasiūlymu pateikiami šie dokumentai:
A35: Nr. | B35: Dokumento pavadinimas | H35: Dokumentas yra konfidencialus? Taip/Ne
A36: 1 | B36: Jungtinės veiklos kopija (jei taikoma) | H36: -
A37: 2 | B37: Europos bendrasis viešųjų pirkimų dokumentas | H37: Taip, 4 psl.
A38: 3 | B38: Subtiekimo sutartis, ketinimų protokolas, preliminarios sutartys ar kiti dokumentai, patvirtinantys, kad laimėjus pirkimą tiekėjui bus prieinami kitų ūkio subjektų ištekliai (jei pasitelkiami kvalifikacijos atitikimui) | H38: -
A39: 4 | B39: Pasiūlymo atitikimą pirkimo sąlygų techninei specifikacijai pagrindžiantys dokumentai | H39: Taip
A40: 5 | B40: Prekės pavyzdys | H40: -
A41: 6. | B41: EC sertifikatai | H41: Ne
A42: 7. | B42: Direktoriaus įgaliojimas | H42: Ne
A48: Pasiūlyme nurodyta Prekės kaina, išskyrus jos sudedamąsias dalis, subtiekėjai, taip pat kita informacija, kuri teisės aktų nustatyta tvarka turi būti skelbiama arba kitokiu būdu viešai prieinama visuomenei, nėra laikoma konfidencialia informacija. Konfidencialią informaciją sudaro, visų pirma, komercinė (gamybinė) paslaptis ir konfidencialieji pasiūlymų aspektai. Informacija, kurią viešai skelbti įpareigoja Lietuvos Respublikos įstatymai, negali būti tiekėjo nurodoma kaip konfidenciali, todėl, tiekėjui nurodžius tokią informaciją kaip konfidencialią, perkančioji organizacija turi teisę ją skelbti. Jei tiekėjas nenurodo konfidencialios informacijos, laikoma, kad konfidencialios informacijos tiekėjo pasiūlyme nėra. Vadovaujantis Informacijos viešinimo Centrinėje viešųjų pirkimų informacinėje sistemoje tvarkos aprašu, patvirtintu Viešųjų pirkimų tarnybos direktoriaus 2017 m. birželio 19 d. įsakymu Nr. 1S-91 „Dėl Informacijos viešinimo Centrinėje viešųjų pirkimų informacinėje sistemoje tvarkos aprašo patvirtinimo“, perkančioji organizacija laimėjusio dalyvio pasiūlymą, išskyrus informaciją, kurią tiekėjas nurodė kaip konfidencialią, paskelbs CVP IS.
A51: Tiekėjo arba jo įgalioto asmens pareigų pavadinimas: | E51: Biuro administratorė
A53: Pasirašančio asmens vardas ir pavardė: | E53: Indrė Grockė
A100: 6885-8 2022-03-03 09:06:06
